Cogmind - Beta 11.1 *** ADVENTURER MODE // 2022.05.08 @ 03:09:17 Player: Fgdfgfthgr Result: Self-destructed Performance ------------- Evolutions (5) 2500 Regions Visited (17) 3400 Robots Destroyed (174) 870 Value Destroyed (5255) 5255 Prototype IDs (61) 1220 Alien Tech Used (0) 0 Bonus (2997) 2997 TOTAL SCORE: 16242 Bonus ------- High Alert Combat Kills 190 Follower Combat Kills 2277 Network Hubs Disabled 200 Aligned with FarCom 300 A7 Reached Mainframe 300 Met R17 at Cetus 500 Friendly Fire -770 Cogmind --------- Core Integrity 912/1000 Matter 198/300 Energy 138/300 System Corruption 0% Temperature Cool (0) Movement Hovering (38) Location -5/Factory Parts ------- > --- POWER (1) -------- Enhanced Nuclear Core > --- PROPULSION (6) --- Improved Airjet Cooled Aerolev Unit Cooled Aerolev Unit Cooled Aerolev Unit Combat Airjet Linear Gravjet > --- UTILITY (8) ------ Large Storage Unit Machine Analyzer Enhanced Optical Array Advanced Signal Interpreter Armor Integrity Analyzer Medium Regenerative Plating > --- WEAPON (2) ------- Compact HERF Cannon Shock Maul > --- INVENTORY (15) --- Enhanced Nuclear Core Fission Core Improved Airjet Improved Airjet Linear Gravjet Improved Transmission Jammer Cloak of Protection Advanced Focal Shield Improved Hardlight Generator System Restoration Module Improved Trap Extractor (0/6) Heavy Rocket Launcher Molecular Deconstructor CR-A16's Behemoth Slayer Peak State ------------ > --- POWER ------------ Enhanced Nuclear Core > --- PROPULSION ------- Improved Airjet Cooled Aerolev Unit Cooled Aerolev Unit Cooled Aerolev Unit Combat Airjet Linear Gravjet > --- UTILITY ---------- Large Storage Unit Machine Analyzer Enhanced Optical Array Advanced Signal Interpreter Armor Integrity Analyzer Medium Regenerative Plating Advanced Focal Shield Improved Hardlight Generator > --- WEAPON ----------- Compact HERF Cannon Shock Maul > --- INVENTORY -------- Enhanced Nuclear Core Fission Core Improved Airjet Improved Airjet Linear Gravjet Structural Scanner Advanced Sensor Array Improved Transmission Jammer Cloak of Protection System Restoration Module Improved Trap Extractor Heavy Rocket Launcher Molecular Deconstructor CR-A16's Behemoth Slayer [Rating: 98] Favorites ----------- Power Ion Engine Engine Ion Engine Power Core Light Nuclear Core Propulsion Cooled Aerolev Unit Treads Light Treads Leg Aluminum Leg Hover Unit Cooled Aerolev Unit Utility High-capacity Storage Unit Device Structural Scanner Storage High-capacity Storage Unit Processor Machine Analyzer Protection Hardened Light Armor Plating Weapon Light Cannon Energy Gun Shock Rifle Energy Cannon Beam Cannon Ballistic Gun Enhanced Autogun Ballistic Cannon Light Cannon Launcher Heavy Rocket Launcher Special Weapon Molecular Deconstructor Impact Weapon Shock Maul Slashing Weapon Longsword +1 Piercing Weapon Spear Build | -11 -10 -10 -10 -9 -8 -8 -7 -7 -7 -7 -6 -6 -6 -6 -6 -6 -5 ------- Run | Scr Mat Min Exi Min Mat Sto Fac Low Low Zio Pro Fac Ext Cet Arc Hub Fac Slots Evolved 10 | . . . . . 4 . 2 . . . . 2 . . . . 2 Power . | . . . . . . . . . . . . . . . . . . Propulsion 4 | . . . . . 2 . . . . . . 1 . . . . 1 Utility 6 | . . . . . 2 . 2 . . . . 1 . . . . 1 Weapon . | . . . . . . . . . . . . . . . . . . Parts Attached 169 | . 9 . . 1 29 23 25 10 2 1 9 28 11 6 1 2 12 Power 14 | . 1 . . . 2 3 4 . . 1 . 2 . . . 1 . Engine 2 | . 1 . . . . . . . . 1 . . . . . . . Core 12 | . . . . . 2 3 4 . . . . 2 . . . 1 . Reactor . | . . . . . . . . . . . . . . . . . . Propulsion 33 | . 2 . . . 9 13 4 . . . . 2 1 . . . 2 Treads 23 | . 2 . . . 9 12 . . . . . . . . . . . Leg . | . . . . . . . . . . . . . . . . . . Wheel . | . . . . . . . . . . . . . . . . . . Hover 10 | . . . . . . 1 4 . . . . 2 1 . . . 2 Flight . | . . . . . . . . . . . . . . . . . . Utility 67 | . 4 . . . 5 3 12 3 1 . 2 16 5 4 1 1 10 Device 29 | . . . . . 2 1 4 2 1 . 2 5 3 2 . 1 6 Storage 6 | . 3 . . . . . 2 . . . . 1 . . . . . Processor 10 | . . . . . 1 . 4 . . . . 4 . . . . 1 Hackware . | . . . . . . . . . . . . . . . . . . Protection 22 | . 1 . . . 2 2 2 1 . . . 6 2 2 1 . 3 Artifact . | . . . . . . . . . . . . . . . . . . Weapon 55 | . 2 . . 1 13 4 5 7 1 . 7 8 5 2 . . . Energy Gun 1 | . . . . . 1 . . . . . . . . . . . . Energy Cannon 9 | . 1 . . . 2 . . . . . . 3 2 1 . . . Ballistic Gun 13 | . . . . . 5 3 . 3 . . 2 . . . . . . Ballistic Cannon 6 | . 1 . . 1 . . 2 2 . . . . . . . . . Launcher 13 | . . . . . 4 1 2 2 . . 2 . 1 1 . . . Special Weapon 1 | . . . . . . . . . . . . 1 . . . . . Impact Weapon 4 | . . . . . . . . . . . . 3 1 . . . . Slashing Weapon 4 | . . . . . 1 . 1 . . . 2 . . . . . . Piercing Weapon 4 | . . . . . . . . . 1 . 1 1 1 . . . . Special Melee Weapon . | . . . . . . . . . . . . . . . . . . Unidentified Prototypes 11 | . . . . . 1 2 1 . . . . 4 . 2 . . 1 Parts Lost 2 | . . . . . . 1 . . . . . 1 . . . . . Power 1 | . . . . . . 1 . . . . . . . . . . . Propulsion . | . . . . . . . . . . . . . . . . . . Utility 1 | . . . . . . . . . . . . 1 . . . . . Weapon . | . . . . . . . . . . . . . . . . . . Highest Loss Streak 1 | . . . . . . 1 . . . . . 1 . . . . . To Critical Strikes . | . . . . . . . . . . . . . . . . . . Average Slot Usage (%) 99 | . 99 100 100 100 99 99 99 99 100 100 98 99 99 99 100 100 99 Engine 5 | . 14 14 14 14 1 . . . . 6 7 . . . . . . Core 4 | . . . . . 7 9 7 7 7 . . 5 6 6 6 6 5 Treads 20 | . 24 28 28 28 35 35 . . . . . . . . . . . Hover 10 | . . . . . . . 30 30 30 30 30 32 33 33 33 33 35 Device 6 | . . . . . 9 9 14 13 15 15 14 12 12 12 13 13 10 Storage 10 | . 14 14 14 14 9 9 7 7 7 7 7 6 6 6 6 6 5 Processor 8 | . . . . . 8 9 13 15 15 15 15 20 20 20 20 20 23 Protection 10 | . 13 14 14 14 9 9 8 7 7 7 7 6 6 6 6 6 4 Energy Cannon 6 | . 11 14 14 14 4 . . . . . . 3 5 5 6 6 5 Ballistic Gun 4 | . 5 . . . 8 18 . 7 7 7 5 2 . . . . . Ballistic Cannon 6 | . 11 14 14 14 3 . 6 6 4 . . . . . . . . Impact Weapon 1 | . . . . . . . . . . . . 4 5 6 6 6 5 Naked Turns . | . . . . . . . . . . . . . . . . . . Heaviest Build 62 | 14 56 56 56 56 62 58 40 40 38 38 42 47 47 47 47 47 57 Greatest Support 84 | 20 40 40 40 40 80 84 39 39 51 39 39 48 48 48 48 48 57 Greatest Overweight (x) 1 | . 1 1 1 1 . . 1 1 . . 1 . . . . . . Average Overweight (x) . | . . 1 1 1 . . . . . . . . . . . . . Largest Inventory Capacity 20 | . 20 20 20 20 20 20 20 15 15 15 15 15 15 15 15 15 15 Average Capacity 17 | . 15 20 20 20 20 20 11 15 15 15 15 15 15 15 15 15 15 Most Carried 20 | . 18 20 20 20 20 20 20 15 15 15 15 15 15 15 15 15 15 Average Carried 17 | . 13 19 19 19 19 19 10 14 15 14 14 14 14 14 15 14 14 Final Capacity 20 | 8 20 20 20 20 20 20 15 15 15 15 15 15 15 15 15 15 15 Final Carried 20 | 6 18 20 20 19 20 20 15 15 15 15 15 15 15 15 15 15 15 Class Distribution -------------------- 58% | Mutant 21% | Scavenger-Scout 8% | Scavenger-Mutant 5% | Scout 3% | Commander-Scout Dominant Class ---------------- Mutant | -10/Materials Mutant | -10/Mines Mutant | -10/Exiles Mutant | -9/Mines Mutant | -8/Materials Mutant | -8/Storage Scavenger-Scout | -7/Factory Scavenger-Scout | -7/Lower Caves Scavenger-Scout | -7/Lower Caves Scavenger-Scout | -7/Zion Scavenger-Scout | -6/Proximity Caves Scout | -6/Factory Commander-Scout | -6/Extension Commander-Scout | -6/Cetus Scavenger-Scout | -6/Archives Scavenger-Scout | -6/Hub_04(d) Scavenger-Scout | -5/Factory Resources | -11 -10 -10 -10 -9 -8 -8 -7 -7 -7 -7 -6 -6 -6 -6 -6 -6 -5 ----------- Run | Scr Mat Min Exi Min Mat Sto Fac Low Low Zio Pro Fac Ext Cet Arc Hub Fac Matter Collected 3826 | 200 250 52 . 145 815 978 316 174 46 10 173 313 134 172 10 20 18 Remotely . | . . . . . . . . . . . . . . . . . . Salvage Created 6753 | . 456 361 . 242 1819 1252 392 38 62 . 200 634 712 119 71 247 148 Parts 319 | . 44 19 . 8 91 66 25 2 7 . 4 7 26 2 3 8 7 Haulers Intercepted 16 | . 1 . . . 4 5 2 . . . . 3 . . . 1 . Recyclers Shooed 3 | . . . . . 1 . 2 . . . . . . . . . . Parts Field Recycled . | . . . . . . . . . . . . . . . . . . Retrieved Matter . | . . . . . . . . . . . . . . . . . . Parts Self-Destructed 13 | . . . . . . . . 3 7 . 3 . . . . . . Prevented . | . . . . . . . . . . . . . . . . . . Kills | -11 -10 -10 -10 -9 -8 -8 -7 -7 -7 -7 -6 -6 -6 -6 -6 -6 -5 ------- Run | Scr Mat Min Exi Min Mat Sto Fac Low Low Zio Pro Fac Ext Cet Arc Hub Fac Combat Hostiles Destroyed 108 | . 12 4 . 10 31 19 2 1 1 . 7 4 9 1 1 1 5 Melee 6 | . . . . . . . . . . . . 1 1 . . . 4 Guns 37 | . 5 . . . 13 19 . . . . . . . . . . . Cannons 46 | . 7 4 . 10 18 . . 1 1 . . . 3 1 . 1 . AOE 10 | . . . . . . . 2 . . . 7 . 1 . . . . Classes Destroyed 20 | . 7 1 . 3 4 1 . 1 . . 1 . 1 . . . 1 Worker 17 | . 1 2 . . 3 3 5 . . . . 1 . . . 2 . Builder 5 | . 1 . . . 1 1 1 . . . . . . . . 1 . Tunneler 5 | . 1 1 . . 2 . . . . . . 1 . . . . . Hauler 16 | . 1 . . . 4 5 2 . . . . 3 . . . 1 . Recycler 7 | . . 2 . . 1 . 2 . . . . 1 1 . . . . Minesweeper 2 | . . . . . . . . 1 1 . . . . . . . . Mechanic 1 | . . . . . 1 . . . . . . . . . . . . Operator 1 | . . . . . . 1 . . . . . . . . . . . Drone 1 | . . . . . 1 . . . . . . . . . . . . Watcher 15 | . 3 . . . 3 1 2 . . . . 3 1 . . 1 1 Swarmer 22 | . 6 . . . 4 2 . . . . . 4 2 . . . 4 Grunt 53 | . 6 4 . 5 15 10 2 1 . . 6 . 3 1 . . . Brawler 2 | . . . . 1 1 . . . . . . . . . . . . Duelist 1 | . . . . . . . . . . . 1 . . . . . . Sentry 18 | . . . . . 8 6 . . . . . . 2 . 1 1 . Demolisher 1 | . . . . 1 . . . . . . . . . . . . . Hunter 4 | . . . . . 2 1 . . 1 . . . . . . . . Programmer 1 | . . . . . . . . . . . . . . . . . 1 Behemoth 2 | . . . . . . . . . . . . . 2 . . . . Assembled 3 | . . . . 3 . . . . . . . . . . . . . Best Kill Streak 10 | . 5 3 . 3 6 10 6 2 1 . 4 5 3 1 1 5 6 Combat Bots Only 5 | . 3 2 . 3 4 5 2 1 1 . 4 4 2 1 1 1 4 Max Kills in Single Turn 4 | . 2 2 . 2 1 2 4 1 1 . 2 1 1 1 1 3 1 Gunslinging . | . . . . . . . . . . . . . . . . . . Exploded 2 | . . . . . . . 2 . . . 2 . 1 . . . . Melee 1 | . . . . . . . . . . . . 1 1 . . . 1 Uniques/NPCs Destroyed 1 | . . . . . . . . . . . . . . 1 . . . A7 (-6/Cetus) Combat | -11 -10 -10 -10 -9 -8 -8 -7 -7 -7 -7 -6 -6 -6 -6 -6 -6 -5 -------- Run | Scr Mat Min Exi Min Mat Sto Fac Low Low Zio Pro Fac Ext Cet Arc Hub Fac Damage Taken 4709 | . 224 50 21 326 1121 1117 47 58 38 . 89 511 198 353 261 86 209 Core 753 | . 27 8 . 37 81 110 27 24 6 . 44 166 31 61 35 8 88 Absorbed by Shields 87 | . . . . . . . . . . . . . 12 9 . . 66 Redirected to Shielding 101 | . . . . . . . . . . . 9 92 . . . . . Regen/Repaired (Parts) 247 | . . . . . . 107 . . . . . 47 . 93 . . . Core Remaining (%) 77 | 100 . . . 71 . 65 . . . . 85 . . . . 64 . Volleys Fired 362 | . 31 13 5 31 128 89 2 11 4 . 9 4 11 17 . 7 . Largest 2 | . 2 2 1 2 2 2 1 2 2 . 1 1 1 1 . 1 . Hottest 110 | . 95 95 35 95 110 50 39 59 59 . 39 94 94 94 . 94 . Shots Fired 650 | . 62 26 5 56 252 178 2 15 6 . 9 4 11 17 . 7 . Gun 328 | . 36 . . . 101 177 . 10 4 . . . . . . . . Cannon 295 | . 26 26 5 56 147 . . 4 2 . . 3 10 9 . 7 . Launcher 26 | . . . . . 4 1 2 1 . . 9 . 1 8 . . . Special 1 | . . . . . . . . . . . . 1 . . . . . Kinetic 430 | . 49 13 5 29 137 177 . 14 6 . . . . . . . . Thermal 139 | . 13 13 . 27 86 . . . . . . . . . . . . Explosive 24 | . . . . . 2 1 2 1 . . 9 . 1 8 . . . Electromagnetic 56 | . . . . . 27 . . . . . . 3 10 9 . 7 . Robot Hit Streak 46 | . 12 14 . 16 26 46 4 12 14 . 5 6 15 5 . 4 . Robot Miss Streak 4 | . 3 1 . 4 3 2 . 2 1 . 1 . . 1 . 1 . Penetration Max . | . . . . . . . . . . . . . . . . . . Secondary Targets 12 | . 1 . . . 3 8 . . . . . . . . . . . Max Gunslinging Chain 1 | . 1 . . . 1 1 . . . . . . . . . . . Shots Hit Robots 551 | . 46 20 . 40 197 143 15 13 5 . 6 15 22 6 6 8 9 Core Hits 248 | . 22 10 . 16 74 53 9 4 4 . 17 3 9 20 . 6 1 Critical Kills 4 | . . . . . 1 . . . . . . 1 1 . . . 1 Critical Parts Destroyed 14 | . . . . . . 2 . . . . . 3 3 . 1 1 4 Critical Strikes 28 | . 1 . . 1 4 2 1 1 . . . 4 5 . 3 1 5 Destroy 3 | . . . . . 1 2 . . . . . . . . . . . Blast 6 | . 1 . . 1 3 . . 1 . . . . . . . . . Corrupt 1 | . . . . . . . . . . . . . 1 . . . . Smash 17 | . . . . . . . . . . . . 4 4 . 3 1 5 Sever 1 | . . . . . . . 1 . . . . . . . . . . Melee Attacks 116 | . . . . . . . 36 1 . 1 1 28 14 . 6 6 23 Impact 71 | . . . . . . . . . . . . 25 11 . 6 6 23 Slashing 38 | . . . . . . . 36 1 . . 1 . . . . . . Piercing 7 | . . . . . . . . . . 1 . 3 3 . . . . Sneak Attacks 20 | . . . . . . . 7 . . . . 7 5 . . 1 . Combat Hostiles 3 | . . . . . . . . . . . . . 3 . . . . Follow-up Attacks . | . . . . . . . . . . . . . . . . . . Damage Inflicted 16940 | . 720 399 . 731 4028 2725 1534 360 105 . 1262 1277 1274 1036 207 765 517 Guns 4789 | . 344 . . . 1450 2725 . 207 63 . . . . . . . . Cannons 4721 | . 376 399 . 731 2314 . . 78 42 . . 74 325 242 . 140 . Explosions 3333 | . . . . . 264 . 534 19 . . 1262 . 126 794 . 334 . Melee 4097 | . . . . . . . 1000 56 . . . 1203 823 . 207 291 517 Ramming . | . . . . . . . . . . . . . . . . . . Kinetic 6090 | . 538 185 . 374 1878 2725 . 285 105 . . . . . . . . Thermal 2515 | . 182 214 . 357 1762 . . . . . . . . . . . . Explosive 2735 | . . . . . . . 534 19 . . 1262 . 126 794 . . . Electromagnetic 1503 | . . . . . 388 . . . . . . 74 325 242 . 474 . Impact 2924 | . . . . . . . . . . . . 1118 791 . 207 291 517 Slashing 1056 | . . . . . . . 1000 56 . . . . . . . . . Piercing 117 | . . . . . . . . . . . . 85 32 . . . . Highest Corruption 1 | . . . . . . 1 . . . . . 1 . . . 1 . Average Corruption 1 | . . . . . . 1 . . . . . 1 . . . 1 . Corruption Purged 1 | . . . . . . . . . . . . 1 . . . . . Corruption Blocked . | . . . . . . . . . . . . . . . . . . Effects 11 | . . . . . . 11 . . . . . . . . . . . Message Errors 1 | . . . . . . 1 . . . . . . . . . . . Matter Fused 1 | . . . . . . 1 . . . . . . . . . . . Heat Flow Errors 2 | . . . . . . 2 . . . . . . . . . . . Energy Discharges 2 | . . . . . . 2 . . . . . . . . . . . Data Loss (minor) 3 | . . . . . . 3 . . . . . . . . . . . Data Loss (major) 1 | . . . . . . 1 . . . . . . . . . . . Misfires 1 | . . . . . . 1 . . . . . . . . . . . Overload Shots . | . . . . . . . . . . . . . . . . . . Overflow Damage 1896 | . 24 . . 5 124 . 299 . . . 35 587 395 . 31 91 305 Projectiles 99 | . 24 . . 5 12 . . . . . . 39 19 . . . . Explosions 234 | . . . . . 112 . 64 . . . 35 . . . . 23 . Melee 1563 | . . . . . . . 235 . . . . 548 376 . 31 68 305 Knockbacks 30 | . 3 4 . 8 5 . . 2 1 . . 1 5 . . . 1 Impact 7 | . . . . . . . . . . . . 1 5 . . . 1 Kinetic 21 | . 3 3 . 7 5 . . 2 1 . . . . . . . . Secondary 2 | . . 1 . 1 . . . . . . . . . . . . . Self-Inflicted Damage 133 | . . . . . . . . . . . 17 . . 41 . 75 . Shots 3 | . . . . . . . . . . . 1 . . 1 . 1 . Rammed . | . . . . . . . . . . . . . . . . . . Targets Rammed . | . . . . . . . . . . . . . . . . . . Kicked . | . . . . . . . . . . . . . . . . . . Crushed . | . . . . . . . . . . . . . . . . . . Highest Temperature 336 | . 267 162 8 336 225 274 . 34 4 . . 40 94 94 . 88 . Average Temperature 76 | . 98 54 3 144 40 77 . 14 3 . . 20 39 36 . 40 . Received Heat Transfer 1603 | . 60 36 . 24 675 549 . 63 . . 45 36 46 27 36 6 . Effects 4 | . . . . 4 . . . . . . . . . . . . . Shutdowns 1 | . . . . 1 . . . . . . . . . . . . . Interference 3 | . . . . 3 . . . . . . . . . . . . . Siege Activations . | . . . . . . . . . . . . . . . . . . Robots Corrupted . | . . . . . . . . . . . . . . . . . . Combat Hostiles . | . . . . . . . . . . . . . . . . . . Parts Fried 40 | . . . . . 2 . . . . . . 10 9 . . 12 7 Impact Corruptions 35 | . . . . . . . . . . . . 15 9 . 1 3 7 Robots Melted . | . . . . . . . . . . . . . . . . . . Combat Hostiles . | . . . . . . . . . . . . . . . . . . Parts Melted 6 | . . . . 1 5 . . . . . . . . . . . . Heat Transferred 4331 | . 370 444 . 740 2777 . . . . . . . . . . . . Parts Sabotaged . | . . . . . . . . . . . . . . . . . . Parts Stolen 1 | . . . . . . . . 1 . . . . . . . . . Parts Stripped . | . . . . . . . . . . . . . . . . . . Power Chain Reactions 1 | . . . . . 1 . . . . . . . . . . . . Missiles Intercepted . | . . . . . . . . . . . . . . . . . . Alert | -11 -10 -10 -10 -9 -8 -8 -7 -7 -7 -7 -6 -6 -6 -6 -6 -6 -5 ------- Run | Scr Mat Min Exi Min Mat Sto Fac Low Low Zio Pro Fac Ext Cet Arc Hub Fac Peak Influence 743 | . 278 110 . 173 451 636 433 . . . . 465 699 743 421 249 380 Initial 340 | . . . . . . 4 53 . . . . 88 196 340 250 64 104 Average 183 | . 86 22 . 19 208 244 256 . . . . 272 409 637 371 80 198 Maximum Alert Level 3 | . 1 . . . 2 2 2 . . . . 2 2 3 2 1 1 Low Security (%) 61 | . 92 100 . 100 45 60 23 . . . . 28 2 . . 98 73 Level 1 23 | . 7 . . . 48 13 59 . . . . 48 40 19 28 1 26 Level 2 13 | . . . . . 6 26 16 . . . . 23 56 18 71 . . Level 3 1 | . . . . . . . . . . . . . . 62 . . . Level 4 . | . . . . . . . . . . . . . . . . . . Level 5 . | . . . . . . . . . . . . . . . . . . High Security . | . . . . . . . . . . . . . . . . . . Max Security . | . . . . . . . . . . . . . . . . . . Squads Dispatched 31 | . 2 1 . . 5 8 4 . . . . 3 3 . . 2 3 Investigation 10 | . 2 . . . 2 3 1 . . . . . 2 . . . . Extermination 1 | . . . . . . . . . . . . . . . . . 1 Reinforcement 12 | . . . . . 2 2 2 . . . . 2 1 . . 2 1 Assault 3 | . . 1 . . . . 1 . . . . 1 . . . . . Garrison 5 | . . . . . 1 3 . . . . . . . . . . 1 Intercept . | . . . . . . . . . . . . . . . . . . Searches Triggered . | . . . . . . . . . . . . . . . . . . Construction Impeded . | . . . . . . . . . . . . . . . . . . Haulers Reinforced 4 | . . . . . . . 2 . . . . 1 . . . 1 . Active Scanning Responses . | . . . . . . . . . . . . . . . . . . Cargo Convoy Interrupts . | . . . . . . . . . . . . . . . . . . Stealth | -11 -10 -10 -10 -9 -8 -8 -7 -7 -7 -7 -6 -6 -6 -6 -6 -6 -5 --------- Run | Scr Mat Min Exi Min Mat Sto Fac Low Low Zio Pro Fac Ext Cet Arc Hub Fac Distress Signals 12 | . . . . 1 3 3 2 . . . . 1 . 2 . . . Communications Jammed . | . . . . . . . . . . . . . . . . . . Distress Signals . | . . . . . . . . . . . . . . . . . . Times Spotted 234 | . 16 9 4 9 48 39 11 6 4 . 6 17 31 15 4 5 10 Peak Tracking Total 9 | . 3 3 9 3 6 5 3 3 3 . 4 7 4 5 2 2 4 Tactical Retreats 20 | . . 1 . . 4 2 4 2 . . . 3 1 1 . 1 1 Traps | -11 -10 -10 -10 -9 -8 -8 -7 -7 -7 -7 -6 -6 -6 -6 -6 -6 -5 ------- Run | Scr Mat Min Exi Min Mat Sto Fac Low Low Zio Pro Fac Ext Cet Arc Hub Fac Traps Triggered 12 | . 2 . . . . 4 2 . . . . 1 2 . . 1 . Indirectly . | . . . . . . . . . . . . . . . . . . Trap Hack Attempts . | . . . . . . . . . . . . . . . . . . Triggered . | . . . . . . . . . . . . . . . . . . Disarmed . | . . . . . . . . . . . . . . . . . . Reprogrammed 3 | . 3 . . . . . . . . . . . . . . . . Reused . | . . . . . . . . . . . . . . . . . . Traps Extracted . | . . . . . . . . . . . . . . . . . . Installed . | . . . . . . . . . . . . . . . . . . Triggered 2 | . . . . . . . . 1 . . . . 1 . . . . Machines | -11 -10 -10 -10 -9 -8 -8 -7 -7 -7 -7 -6 -6 -6 -6 -6 -6 -5 ---------- Run | Scr Mat Min Exi Min Mat Sto Fac Low Low Zio Pro Fac Ext Cet Arc Hub Fac Machines Disabled 20 | . . . 1 2 1 5 1 . . . . 2 2 1 1 3 1 Max in Single Turn 3 | . . . 1 1 1 1 1 . . . . 1 1 . . 3 1 Garrison Access 7 | . . . . . 1 1 2 . . . . 2 . . . . 1 Network Hub 1 | . . . . . . . . . . . . . . . . 1 . Machines Sabotaged . | . . . . . . . . . . . . . . . . . . Garrisons Compromised . | . . . . . . . . . . . . . . . . . . Overloaded Fab Kills . | . . . . . . . . . . . . . . . . . . Hacking | -11 -10 -10 -10 -9 -8 -8 -7 -7 -7 -7 -6 -6 -6 -6 -6 -6 -5 --------- Run | Scr Mat Min Exi Min Mat Sto Fac Low Low Zio Pro Fac Ext Cet Arc Hub Fac Machines Accessed 86 | . 10 . 2 . 14 15 13 . 1 . . 11 11 1 . 1 7 Terminals 55 | . 8 . . . 9 10 7 . . . . 5 11 1 . 1 3 Fabricators 5 | . . . . . . . 1 . . . . 2 . . . . 2 Repair Stations 5 | . . . . . . 2 1 . . . . 2 . . . . . Recycling Units 7 | . 2 . . . 2 2 1 . . . . . . . . . . Scanalyzers 4 | . . . . . 2 . 1 . . . . . . . . . 1 Garrison Access 7 | . . . . . 1 1 2 . . . . 2 . . . . 1 Total Hacks 221 | . 35 . 2 . 47 38 26 . 1 . . 23 26 2 . 2 19 Successful 137 | . 24 . 2 . 37 30 10 . 1 . . 13 11 1 . . 8 Failed 83 | . 10 . . . 10 8 16 . . . . 10 15 1 . 2 11 Catastrophic 12 | . . . . . . 2 2 . . . . 3 2 . . 1 2 Database Lockouts 1 | . 1 . . . . . . . . . . . . . . . . Manual 110 | . 24 . 1 . 31 16 9 . . . 1 10 8 1 . 2 7 Terminals 163 | . 33 . . . 35 27 16 . . . . 12 26 2 . 2 10 Fabricators 9 | . . . . . . . 2 . . . . 4 . . . . 3 Repair Stations 14 | . . . . . . 8 1 . . . . 5 . . . . . Recycling Units 9 | . 2 . . . 2 2 3 . . . . . . . . . . Scanalyzers 13 | . . . . . 9 . 2 . . . . . . . . . 2 Garrison Access 10 | . . . . . 1 1 2 . . . . 2 . . . . 4 Terminal Hacks 78 | . 20 . 2 . 19 15 5 . 1 . . 3 10 1 . . 2 Record 1 | . . . 1 . . . . . . . . . . . . . . Part Schematic 5 | . . . . . . 2 1 . . . . . 2 . . . . Robot Schematic 1 | . . . . . . 1 . . . . . . . . . . . Robot Analysis 9 | . 5 . . . 4 . . . . . . . . . . . . Prototype ID Bank 20 | . 8 . . . 9 1 1 . . . . . 1 . . . . Open Door 10 | . . . . . . 3 . . 1 . . . 5 1 . . . Level Access Points 1 | . 1 . . . . . . . . . . . . . . . . Branch Access Points 2 | . . . . . 1 . 1 . . . . . . . . . . Terminal Index 2 | . 1 . . . . 1 . . . . . . . . . . . Garrison Index 1 | . . . . . . 1 . . . . . . . . . . . Alert Level 3 | . . . . . 1 2 . . . . . . . . . . . Unreport Threat 4 | . . . . . 1 3 . . . . . . . . . . . Locate Traps 14 | . 4 . . . 1 . 2 . . . . 3 2 . . . 2 Reprogram Traps 1 | . 1 . . . . . . . . . . . . . . . . Hauler Manifests 1 | . . . . . . 1 . . . . . . . . . . . Zone Layout 2 | . . . . . 2 . . . . . . . . . . . . EX-Prototype ID Bank 1 | . . . 1 . . . . . . . . . . . . . . Fabricator Hacks 3 | . . . . . . . . . . . . 1 . . . . 2 Build 3 | . . . . . . . . . . . . 1 . . . . 2 Repair Station Hacks 13 | . . . . . . 8 1 . . . . 4 . . . . . Scan Component 7 | . . . . . . 4 1 . . . . 2 . . . . . Repair 6 | . . . . . . 4 . . . . . 2 . . . . . Recycling Unit Hacks 1 | . . . . . . . 1 . . . . . . . . . . Process 1 | . . . . . . . 1 . . . . . . . . . . Scanalyzer 10 | . . . . . 9 . . . . . . . . . . . 1 Insert Component 5 | . . . . . 4 . . . . . . . . . . . 1 Analyze 5 | . . . . . 5 . . . . . . . . . . . . Garrison Access Hacks 5 | . . . . . 1 1 1 . . . . 1 . . . . 1 Seal Access 5 | . . . . . 1 1 1 . . . . 1 . . . . 1 Unauthorized Hacks 27 | . 4 . . . 8 6 2 . . . . 4 1 . . . 2 Terminals 20 | . 2 . . . 6 4 2 . . . . 3 1 . . . 2 Assimilate 1 | . . . . . 1 . . . . . . . . . . . . Botnet 14 | . 1 . . . 3 3 2 . . . . 2 1 . . . 2 Detonate 1 | . . . . . 1 . . . . . . . . . . . . Operators 4 | . 1 . . . 1 1 . . . . . 1 . . . . . Fabricators 1 | . . . . . . . . . . . . 1 . . . . . Fabnet 1 | . . . . . . . . . . . . 1 . . . . . Repair Stations . | . . . . . . . . . . . . . . . . . . Recycling Units 6 | . 2 . . . 2 2 . . . . . . . . . . . Tunnel 6 | . 2 . . . 2 2 . . . . . . . . . . . Scanalyzers . | . . . . . . . . . . . . . . . . . . Garrison Access . | . . . . . . . . . . . . . . . . . . Data Cores Recovered . | . . . . . . . . . . . . . . . . . . Used . | . . . . . . . . . . . . . . . . . . Hacking Detections 64 | . 7 . . . 11 9 12 . . . . 9 9 . . 1 6 Full Trace Events 2 | . . . . . . . 1 . . . . . 1 . . . . Feedback Events . | . . . . . . . . . . . . . . . . . . Feedback Blocked . | . . . . . . . . . . . . . . . . . . Robot Schematics Acquired 4 | . . . . . . 1 . . . 3 . . . . . . . Robots Built . | . . . . . . . . . . . . . . . . . . Authchips . | . . . . . . . . . . . . . . . . . . Time . | . . . . . . . . . . . . . . . . . . Total Robot Build Rating . | . . . . . . . . . . . . . . . . . . Part Schematics Acquired 24 | . . . . . 4 2 1 . . 15 . . 2 . . . . Parts Built 5 | . . . . . . . . . . . . 1 . . . . 4 Authchips . | . . . . . . . . . . . . . . . . . . Time 292 | . . . . . . . . . . . . 128 . . . . 164 Total Part Build Rating 34 | . . . . . . . . . . . . 8 . . . . 26 Parts Repaired 6 | . . . . . . 4 . . . . . 2 . . . . . Time 349 | . . . . . . 290 . . . . . 59 . . . . . Parts Recycled . | . . . . . . . . . . . . . . . . . . Recycled Matter . | . . . . . . . . . . . . . . . . . . Retrieved Matter . | . . . . . . . . . . . . . . . . . . Retrieved Components . | . . . . . . . . . . . . . . . . . . Parts Scanalyzed 5 | . . . . . 4 . . . . . . . . . . . 1 Part Schematics Acquired 4 | . . . . . 4 . . . . . . . . . . . . Parts Damaged . | . . . . . . . . . . . . . . . . . . Bothacking | -11 -10 -10 -10 -9 -8 -8 -7 -7 -7 -7 -6 -6 -6 -6 -6 -6 -5 ------------ Run | Scr Mat Min Exi Min Mat Sto Fac Low Low Zio Pro Fac Ext Cet Arc Hub Fac Used RIF Installer . | . . . . . . . . . . . . . . . . . . Robots Hacked . | . . . . . . . . . . . . . . . . . . Non-combat . | . . . . . . . . . . . . . . . . . . Combat . | . . . . . . . . . . . . . . . . . . Robot Hacks Applied . | . . . . . . . . . . . . . . . . . . Relay Couplers Released 4 | . . . . . . . 2 . . . . 2 . . . . . Machine Destruction 4 | . . . . . . . 2 . . . . 2 . . . . . Fabnet Peak Effective % 3 | . . . . . . . . . . . . . . . . . 3 Robots Rewired 14 | . . . . . . . . . . . . . 14 . . . . Allies Hacked . | . . . . . . . . . . . . . . . . . . Hacks Repelled . | . . . . . . . . . . . . . . . . . . Allies | -11 -10 -10 -10 -9 -8 -8 -7 -7 -7 -7 -6 -6 -6 -6 -6 -6 -5 -------- Run | Scr Mat Min Exi Min Mat Sto Fac Low Low Zio Pro Fac Ext Cet Arc Hub Fac Total Allies 44 | . . 3 . 3 . 11 3 . . . . . 22 2 . . . Largest Group 10 | . . 2 2 3 3 10 3 . . . . . 10 8 4 4 . Highest-Rated Group 429 | . . 50 50 40 40 173 95 . . . . . 418 429 167 164 . Highest-Rated Ally 159 | . . 31 31 16 16 100 95 . . . . . 159 159 96 96 . Total Orders . | . . . . . . . . . . . . . . . . . . Ally Attacks 354 | . . 6 . . 29 99 20 . . . . . 123 57 15 5 . Total Damage 7621 | . . 88 . . 362 1420 372 . . . . . 3173 1448 372 386 . Kills 62 | . . 2 . . 2 18 1 . . . . . 21 14 3 1 . Allies Corrupted 1 | . . . . . . 1 . . . . . . . . . . . Allies Melted . | . . . . . . . . . . . . . . . . . . Intel | -11 -10 -10 -10 -9 -8 -8 -7 -7 -7 -7 -6 -6 -6 -6 -6 -6 -5 ------- Run | Scr Mat Min Exi Min Mat Sto Fac Low Low Zio Pro Fac Ext Cet Arc Hub Fac Robot Analysis Total 9 | . 5 . . . 4 . . . . . . . . . . . . Derelict Logs Recovered 10 | . . 2 . 2 . . . 2 1 1 2 . . . . . . Drone Launches . | . . . . . . . . . . . . . . . . . . Drone Recoveries . | . . . . . . . . . . . . . . . . . . Exploration | -11 -10 -10 -10 -9 -8 -8 -7 -7 -7 -7 -6 -6 -6 -6 -6 -6 -5 ------------- Run | Scr Mat Min Exi Min Mat Sto Fac Low Low Zio Pro Fac Ext Cet Arc Hub Fac Turns Passed 13839 | . 1513 1620 621 1510 2458 1599 710 328 195 325 255 678 624 358 508 161 376 Spaces Moved 10575 | 1 745 654 254 578 1209 767 1216 540 407 700 465 1198 576 299 81 205 680 Core . | . . . . . . . . . . . . . . . . . . Treads 4074 | . 612 654 254 578 1209 767 . . . . . . . . . . . Legs 134 | 1 133 . . . . . . . . . . . . . . . . Wheels . | . . . . . . . . . . . . . . . . . . Hover 6367 | . . . . . . . 1216 540 407 700 465 1198 576 299 81 205 680 Flight . | . . . . . . . . . . . . . . . . . . Fastest Speed 30 | 120 120 240 240 240 160 157 45 45 30 45 45 40 40 40 40 40 33 Average Speed 102 | 120 185 240 240 240 164 162 45 45 44 45 45 40 40 40 40 40 37 Slowest Speed 240 | 120 240 240 240 240 165 165 100 100 45 45 100 40 40 40 40 40 40 Overloaded Moves 11 | . . . . . . . . . 11 . . . . . . . . Propulsion Burnouts . | . . . . . . . . . . . . . . . . . . Robots Hopped . | . . . . . . . . . . . . . . . . . . Cave-ins Triggered . | . . . . . . . . . . . . . . . . . . Exploration Rate (%) 66 | 2 91 99 60 95 97 93 45 66 65 81 64 41 78 87 81 32 26 Regions Visited 17 Branch Regions 12 Pre-discovered Areas 8 | . 2 . 1 . 2 2 . . . 1 . . . . . . . Known Exits Taken 13 | . . . 1 . 1 1 1 1 1 1 1 1 1 1 1 1 . Unknown Exits Taken 4 | 1 1 1 . 1 . . . . . . . . . . . . . Scrap Searched 11 | . . 1 . 2 . . . 2 3 1 2 . . . . . . Spaces Dug 103 | . . . . . 19 20 22 16 . . 1 11 . . . 2 12 Terrain Destroyed 532 | . . . . . 82 20 45 16 . . 86 11 18 81 . 161 12 Melee 48 | . . . . . . . 22 . . . 1 11 . . . 2 12 Projectile . | . . . . . . . . . . . . . . . . . . AOE 484 | . . . . . 82 20 23 16 . . 85 . 18 81 . 159 . Terrain Rammed . | . . . . . . . . . . . . . . . . . . Walls Destroyed . | . . . . . . . . . . . . . . . . . . Machines Disabled . | . . . . . . . . . . . . . . . . . . Actions | -11 -10 -10 -10 -9 -8 -8 -7 -7 -7 -7 -6 -6 -6 -6 -6 -6 -5 --------- Run | Scr Mat Min Exi Min Mat Sto Fac Low Low Zio Pro Fac Ext Cet Arc Hub Fac Total 12810 | . 819 681 262 646 1459 1020 1344 606 414 709 498 1337 930 520 543 265 757 Wait 1183 | . 11 9 . 36 56 100 26 42 . . 6 52 140 190 456 30 29 Move 10558 | . 744 653 253 577 1208 766 1215 539 406 699 464 1197 575 298 80 204 680 Hop . | . . . . . . . . . . . . . . . . . . Pick Up 85 | . 16 4 2 . 12 15 12 . . 4 2 8 1 3 . 1 5 Fast Attach 49 | . 1 . . . 8 5 5 3 2 . 4 12 4 3 . . 2 Attach 31 | . 2 . . . 3 1 12 1 . 1 1 5 1 . . 1 3 Detach 4 | . . . . . 1 . . 1 . . . 2 . . . . . Swap 89 | . 6 . . 1 18 17 8 6 . . 4 11 6 3 1 1 7 Drop 140 | . 8 2 2 1 25 27 20 2 2 4 7 18 6 6 . 2 8 Fire 362 | . 31 13 5 31 128 89 2 11 4 . 9 4 11 17 . 7 . Melee 116 | . . . . . . . 36 1 . 1 1 28 14 . 6 6 23 Ram . | . . . . . . . . . . . . . . . . . . Kick . | . . . . . . . . . . . . . . . . . . Crush . | . . . . . . . . . . . . . . . . . . Escape Stasis 47 | . . . . . . . 8 . . . . . 26 . . 13 . Rewire 146 | . . . . . . . . . . . . . 146 . . . . Trap . | . . . . . . . . . . . . . . . . . . Miscellaneous . | . . . . . . . . . . . . . . . . . . Route ------- -11/Scrapyard -10/Materials (discovered 5 exits: *Mat x3 / [*Min x2]) -10/Mines (discovered 3 exits: *Mat x2 / *Exi) -10/Exiles (discovered 2 exits: *Min x2) -9/Mines (discovered 2 exits: *Mat x2) -8/Materials (discovered 4 exits: *Fac x3 / *Sto) -8/Storage -7/Factory (discovered 2 exits: *Low x2) -7/Lower Caves -7/Lower Caves (discovered 2 exits: *Fac / *Zio) -7/Zion -6/Proximity Caves -6/Factory (discovered 5 exits: *Fac x2 / Low / *Ext x2) -6/Extension (discovered 2 exits: *Fac / *Cet) -6/Cetus (discovered 2 exits: *Fac / *Arc) -6/Archives (discovered 3 exits: *Fac / *Hub x2) -6/Hub_04(d) -5/Factory History --------- Turn | Location | Event 1 | -11/Scrapyard | Discovered new exit (range 0) 1 | -11/Scrapyard | Entered Materials 115 | -10/Materials | Identified exit to Materials 324 | -10/Materials | Build established: Mutant 505 | -10/Materials | Discovered new exit (range 10) 564 | -10/Materials | Central database locked down 726 | -10/Materials | Discovered new exit (range 16) 1514 | -10/Materials | Entered Mines 1536 | -10/Mines | Met a Derelict testing a Signal Generator 1741 | -10/Mines | A weapon hastily lodged in a ceiling crevice suddenly fell to the ground 1827 | -10/Mines | Received a Rocket Launcher from a helpful Derelict 2120 | -10/Mines | Learned Materials trap positions 2514 | -10/Mines | Deemed a non-threat by the Exiles lab entrance 2603 | -10/Mines | Discovered exit to Materials (range 10) 2907 | -10/Mines | Discovered exit to Materials (range 6) 3116 | -10/Mines | Discovered new exit (range 5) 3134 | -10/Mines | Entered Exiles 3134 | -10/Exiles | Accompanied by 2 allies 3135 | -10/Exiles | Identified exit to Mines 3164 | -10/Exiles | Led the pair of lost Derelicts to a safe place 3194 | -10/Exiles | Met 8R-AWN 3233 | -10/Exiles | Met EX-HEX 3329 | -10/Exiles | Met EX-DEC 3338 | -10/Exiles | Learned location of Zion (-7) 3384 | -10/Exiles | Met EX-BIN 3418 | -10/Exiles | Aligned with FarCom system 3420 | -10/Exiles | Given EX-Vault access code 3478 | -10/Exiles | Opened EX-Vault 3495 | -10/Exiles | Found Longsword +1 3501 | -10/Exiles | Found Cloak of Protection 3550 | -10/Exiles | Warned to stay clear of 0b10 Research branches 3715 | -10/Exiles | Attacked by the Exiles 3755 | -10/Exiles | Stole two prototypes: Cloak of Protection, Longsword +1 3755 | -10/Exiles | Entered Mines 3962 | -9/Mines | Discovered new exit (range 13) 4020 | -9/Mines | Assembled infested the area 4306 | -9/Mines | Learned 4 Materials zone layouts 4742 | -9/Mines | Assisted by bots powering up and referring to "LRC-V3" 4853 | -9/Mines | Discovered new exit (range 7) 5265 | -9/Mines | Entered Materials 5265 | -8/Materials | Accompanied by 3 allies 5265 | -8/Materials | Evolved 4 slots: Propulsion x2, Utility x2 5266 | -8/Materials | Identified exit to Factory 5267 | -8/Materials | Identified exit to Storage 5268 | -8/Materials | Loaded intel: 22 trap records 5470 | -8/Materials | Garrison activated, responded to threat 6658 | -8/Materials | Discovered exit to Factory (range 16) 6981 | -8/Materials | Build established: Scavenger-Mutant 7723 | -8/Materials | Entered Storage 7915 | -8/Storage | Garrison activated, responded to threat 8107 | -8/Storage | Build established: Mutant 8114 | -8/Storage | Assisted by bots powering up and referring to "LRC-V3" 8436 | -8/Storage | Discovered exit to Factory (range 16) 8636 | -8/Storage | Met 01-MTF 9010 | -8/Storage | Repaired Cld. Aerolev Unit? 9105 | -8/Storage | Repaired Cld. Aerolev Unit 9160 | -8/Storage | Repaired Cld. Aerolev Unit 9170 | -8/Storage | Repaired Cmb. Airjet 9322 | -8/Storage | Entered Factory 9322 | -7/Factory | Accompanied by 1 ally (01-MTF) 9322 | -7/Factory | Evolved 2 slots: Utility x2 9327 | -7/Factory | 01-MTF left 9753 | -7/Factory | Identified exit to Lower Caves 9793 | -7/Factory | Build established: Scavenger-Scout 9809 | -7/Factory | Allied Derelicts emerged from ambush trap array 10032 | -7/Factory | Entered Lower Caves 10032 | -7/Lower Caves | Spotted HS-0VV(f) 10033 | -7/Lower Caves | Encountered a Master Thief 10033 | -7/Lower Caves | Longsword +1 stolen by Master Thief 10136 | -7/Lower Caves | Learned Factory stockpile data 10212 | -7/Lower Caves | Encountered a Warlord checkpoint 10215 | -7/Lower Caves | Learned location of 2 exits from Factory 10225 | -7/Lower Caves | Discovered new exit (range 8) 10359 | -7/Lower Caves | Identified exit to Lower Caves 10360 | -7/Lower Caves | Entered another Lower Caves area 10370 | -7/Lower Caves | Discovered new exit (range 5) 10402 | -7/Lower Caves | Spotted B-75 Beast 10549 | -7/Lower Caves | Learned Factory emergency access door positions 10550 | -7/Lower Caves | Discovered new exit (range 16) 10552 | -7/Lower Caves | Spotted IS-1QJ(f) 10552 | -7/Lower Caves | Spotted WP-ESA(f) 10552 | -7/Lower Caves | Spotted 2K-B0W(f) 10554 | -7/Lower Caves | Encountered a Master Thief 10554 | -7/Lower Caves | Encountered a Master Thief 10555 | -7/Lower Caves | Encountered a Master Thief 10555 | -7/Lower Caves | Identified exit to Zion 10555 | -7/Lower Caves | Entered Zion 10575 | -7/Zion | Found CR-A16's Pointy Stick 10621 | -7/Zion | Received a visual enhancement algorithm 10639 | -7/Zion | Learned location of 1 exit from Lower Caves 10870 | -7/Zion | Given the Hacking Drone Bay 10872 | -7/Zion | Discovered new exit (range 15) 10879 | -7/Zion | Identified exit to Proximity Caves 10880 | -7/Zion | Entered Proximity Caves 11011 | -6/Proximity Caves | Identified exit to Factory 11124 | -6/Proximity Caves | Acquired the password to a Derelict Tinkerer's latest research 11130 | -6/Proximity Caves | Found Prototype Special Weapon 11135 | -6/Proximity Caves | Entered Factory 11135 | -6/Factory | Evolved 2 slots: Propulsion x1, Utility x1 11136 | -6/Factory | Identified exit to Lower Caves 11137 | -6/Factory | Identified exit to Factory 11137 | -6/Factory | Identified exit to Extension 11258 | -6/Factory | Found Prototype Processor 11258 | -6/Factory | Identified Exp. Targeting Computer 11307 | -6/Factory | Repaired Imp. Sensor Array? 11404 | -6/Factory | Fabricated Com. HERF Cannon (x1) 11525 | -6/Factory | Discovered exit to Extension (range 4) 11645 | -6/Factory | Build established: Scout 11665 | -6/Factory | Identified Molecular Deconstructor 11724 | -6/Factory | Repaired Cld. Aerolev Unit 11737 | -6/Factory | Discovered exit to Factory (range 4) 11804 | -6/Factory | Spotted B-75 Beast 11813 | -6/Factory | Entered Extension 11908 | -6/Extension | Rescued a captive Derelict 11950 | -6/Extension | Rescued a captive Derelict 11953 | -6/Extension | Rescued a captive Derelict 11978 | -6/Extension | Rescued A7 12010 | -6/Extension | Rescued a captive Derelict 12011 | -6/Extension | Rescued a captive Derelict 12080 | -6/Extension | Spotted B-75 Beast 12086 | -6/Extension | Spotted B-75 Beast 12093 | -6/Extension | Revealed the true nature of CR-A16's Pointy Stick 12096 | -6/Extension | Destroyed B-75 Beast 12100 | -6/Extension | Destroyed B-75 Beast 12207 | -6/Extension | Rescued a captive Derelict 12208 | -6/Extension | Rescued a captive Derelict 12410 | -6/Extension | Discovered exit to Factory (range 10) 12411 | -6/Extension | Discovered new exit (range 6) 12427 | -6/Extension | Identified exit to Cetus 12437 | -6/Extension | Entered Cetus 12437 | -6/Cetus | Accompanied by 8 allies (A7) 12442 | -6/Cetus | Acquired a Cetus Manufacturing Module code from A7 12443 | -6/Cetus | Spotted Cetus Guard 12444 | -6/Cetus | Spotted Cetus Guard 12446 | -6/Cetus | Spotted Cetus Guard 12450 | -6/Cetus | Allies destroyed Cetus Guard 12450 | -6/Cetus | Spotted Cetus Guard 12463 | -6/Cetus | Allies destroyed Cetus Guard 12465 | -6/Cetus | Allies destroyed Cetus Guard 12474 | -6/Cetus | Allies destroyed Cetus Guard 12493 | -6/Cetus | Started Cetus Manufacturing Module 12500 | -6/Cetus | Escorted A7 to Cetus Mainframe 12518 | -6/Cetus | Manufactured an Enhanced Grunt 12524 | -6/Cetus | Discovered new exit (range 22) 12543 | -6/Cetus | Manufactured an Enhanced Grunt 12545 | -6/Cetus | Cetus Manufacturing Module disabled 12545 | -6/Cetus | Spotted Cetus Guard 12546 | -6/Cetus | Spotted Cetus Guard 12546 | -6/Cetus | Spotted Cetus Guard 12548 | -6/Cetus | Destroyed A7 12549 | -6/Cetus | Discovered exit to Factory (range 21) 12549 | -6/Cetus | Spotted Cetus Guard 12551 | -6/Cetus | Found Prototype Protection 12564 | -6/Cetus | Allies destroyed Cetus Guard 12566 | -6/Cetus | Allies destroyed Cetus Guard 12571 | -6/Cetus | Identified Med. Regenerative Plating 12572 | -6/Cetus | Allies destroyed Cetus Guard 12574 | -6/Cetus | Allies destroyed Cetus Guard 12587 | -6/Cetus | Met Revision 17 12717 | -6/Cetus | Identified exit to Archives 12795 | -6/Cetus | Entered Archives 12795 | -6/Archives | Accompanied by 4 allies 12813 | -6/Archives | Discovered new exit (range 22) 12835 | -6/Archives | Discovered new exit (range 22) 12851 | -6/Archives | Discovered exit to Factory (range 22) 13085 | -6/Archives | Build established: Scavenger-Scout 13279 | -6/Archives | Identified exit to Hub_04(d) 13303 | -6/Archives | Entered Hub_04(d) 13303 | -6/Hub_04(d) | Accompanied by 4 allies 13406 | -6/Hub_04(d) | Discovered exit to Factory (range 10) 13462 | -6/Hub_04(d) | Network Hub disabled 13464 | -6/Hub_04(d) | Entered Factory 13464 | -5/Factory | Evolved 2 slots: Propulsion x1, Utility x1 13582 | -5/Factory | Fabricated Adv. Focal Shield? 13656 | -5/Factory | Fabricated Linear Gravjet (x2) 13748 | -5/Factory | Garrison activated, responded to threat 13840 | -5/Factory | Self-destructed Last Messages --------------- 13812_ >> Machine Analyzer network decryption results: 13812_ Terminal x1 13815_ Connecting with Terminal... >>Traps(Locate) Found 6 traps in 1 array: 6x Shock Trap Map updated. >>Trojan(Botnet) Trojan loaded successfully. Testing... Terminal linked with 1 system. Awaiting botnet instructions. 13827_ Dropped Structural Scanner. 13827_ Dropped Adv. Sensor Array. 13837_ P-70 Sage suffers critical hit (Smash). 13837_ Destroyed Imp. Remote Datajack. 13837_ P-70 Sage system corrupted by crushing effect. 13837_ P-70 Sage destroyed. 13839_ Nuclear Reactor explodes. 13839_ P-70 Sage destroyed. Map ----- +----------------------------------------------------+ | # """ """ ##????????????????????? | | # ######### ^^ ##????????????????????? | | # # #^ """ """ ##????????????????????? | | # # ""# """ """ ##????????????????????? | | # # ! ""# """ """ ##?????????? ##???????? | | # # ""# ##??????????/##???????? | | # / T" ! # ????????? ##???????? | | # # ! ""# # ??????? ##???????? | | # # ""###+#### # ????? ##???????? | | # # ""# # # ??? """""? ##???????? | | # # """ # # ?! """"" ##???????? | | ? # """? + """ + # """ ##???????? | | ? # """? # """ # + ##???????? | | ? ? # """? # # # """"" ##???????? | | """"? # ????? # """ # # ? """""? ##???????? | | """"? # ?"""? # """ ##### # ??? """ ?????????? | | """"? # ?"""? # """ ##### # ????? ##???????? | | """"?????"""? # ]##?## # ??????? ##???????? | | """"????????? # """ ##?## ##????????#####???????? | | """"?????????## """ ##?## ##????????#####???????? | | ?????????????## """ ##?## ##????????????????????? | | ?????????????## ##?## #######?## ???????????? | | ?????????????############# ###### # ???????????? | | ?????????????######### % + ???????????? | | ?"?"?????????????????# % ## # ???????????? | | ?"T"?????????????????# @!! ##?###???????????? | | ?"""????????????????# * #????????????????? | | ????????????????????## ##????????????????? | | ?????????????????????# #????????????????? | | ????????????????????# # ???????????????? | | ????????????????????## ! #? ?????????????? | | ?????????????????????# #??? ???????????? | | ?????????????????????### # ###????? ?????????? | | ???????????????????????##?####???????? ???????? | | ???????????????????????????????????????? ?????? | | ?????????????????????????????????????????? ??????? | | ?????????????????????????????????????????????????? | | ?????????????????????????????????????????????????? | | ?????????????????????????????????????????????????? | | ?????????????????????????????????????????????????? | | ?????????????????????????????????????????????????? | | ?????????????????????????????????????????????????? | | ?????????????????????????????????????????????????? | | ?????????????????????????????????????????????????? | | ?????????????????????????????????????????????????? | | ?????????????????????????????????????????????????? | | ?????????????????????????????????????????????????? | | ?????????????????????????????????????????????????? | | ???????????????????????????"""??""???????????????? | | ???????????????????????????"""??"""??????????????? | +----------------------------------------------------+ Best States ------------- Heat Dissipation 53 Energy Generation 18 Energy Capacity 300 Matter Stores 300 Matter Capacity 300 Sight Range 22 Robot Scan Range 16 Terrain Scan Density 10 Cloak Strength 5 Armor Coverage 225 Resistance: KI 50 Resistance: TH 20 Resistance: EX 20 Resistance: EM 20 Resistance: I 20 Resistance: S 20 Resistance: P 20 Propulsion Shielding 66 Evasion (%) 58 Targeting Accuracy 8 Armor Integrity Analysis 30 Recoil Reduction 4 Matter Filtering 50 Offensive Hacking 10 Item Schematics ----------------- Airjet | -8/Materials | Scanalyzed Proton Missile Launcher | -8/Materials | Scanalyzed Assault Cannon | -8/Materials | Scanalyzed Enh. Autogun | -8/Materials | Scanalyzed Power Amplifier | -8/Storage | Hacked Hvy. Particle Cannon | -8/Storage | Hacked Hvy. Missile Launcher | -7/Factory | Hacked Mak. Laser | -7/Zion | Archive Bore Cannon | -7/Zion | Archive Imp. Melee Analysis Suite | -7/Zion | Archive Hyp. Gauss Rifle | -7/Zion | Archive Imp. Salvage Targeting Computer | -7/Zion | Archive 0b10 Decoder Chip [Looter] | -7/Zion | Archive Hvy. Ion Cannon | -7/Zion | Archive Imp. Coolant Injector | -7/Zion | Archive Neutrino Core | -7/Zion | Archive Hvy. Laser | -7/Zion | Archive Mak. Transmission Jammer | -7/Zion | Archive System Restoration Module | -7/Zion | Archive Spk. Medium Treads | -7/Zion | Archive Drone Bay | -7/Zion | Archive Arm. Huge Wheel | -7/Zion | Archive Imp. Force Booster | -6/Extension | Hacked Powered Armor | -6/Extension | Hacked Robot Schematics ------------------ K-01 Serf | -8/Storage | Hacked L-41 Fighter | -7/Zion | Archive R-06 Scavenger | -7/Zion | Archive Y-72 Warden | -7/Zion | Archive Fabricated ------------ Com. HERF Cannon | x1 | -6/Factory | Preloaded Adv. Focal Shield | x2 | -5/Factory | Preloaded Linear Gravjet | x2 | -5/Factory | Preloaded Alien Tech Used ----------------- None Achievements -------------- None Challenges ------------ None Game ------ Seed GrenadeBeamSaw Manual? 0 Play Time 01:50:47 Cumulative 164.7 hours Start 2022.05.08 @ 01:20:20 End 2022.05.08 @ 03:09:17 Sessions 1 Manual Loads 0 Difficulty Adventurer Special Mode None Game No. 72 Rogue 0 Adventurer 72 Explorer 0 Win Type - Total 12 Types 6/1/1/1/1/0/0/1/1 Lore% 88 Gallery% 81 Achievement% 74 Wizard Run 0 Options --------- ASCII 0 Keyboard 1 Movement Numpad Keybinds 0 Fullscreen 2 Font 18/SmallcapsGlow Map View 76x50 Tactical HUD 1 Map Filters NONE Filters NONE Steam 1 RUN: 0842ebae-d699-4be7-876e-eef7b9aa9666